[Event "*** MasterClass Titled Tuesday Blitz"]
[Site "Chess.com"]
[Date "2017.12.12"]
[Round "5"]
[White "Angry_Serb"]
[Black "Parhamov"]
[Result "1-0"]
[WhiteElo "2454"]
[BlackElo "2730"]
[TimeControl "180+2"]
[EndTime "14:06:41 PST"]
[Termination "Angry_Serb won by resignation"]

1. Nf3 {[%clk 0:03:01.5]} 1... d5 {[%clk 0:03:00]} 2. b3 {[%clk 0:03:02.4]} 2...
c5 {[%clk 0:02:59.2]} 3. e3 {[%clk 0:03:00.1]} 3... a6 {[%clk 0:02:59.6]} 4. Bb2
{[%clk 0:02:57.4]} 4... Nf6 {[%clk 0:02:58.9]} 5. c4 {[%clk 0:02:57.8]} 5... Nc6
{[%clk 0:02:58.5]} 6. cxd5 {[%clk 0:02:56.2]} 6... Nxd5 {[%clk 0:02:59.3]} 7. a3
{[%clk 0:02:49.8]} 7... f6 {[%clk 0:02:59.5]} 8. d4 {[%clk 0:02:49.5]} 8... cxd4
{[%clk 0:02:59.7]} 9. Nxd4 {[%clk 0:02:45.2]} 9... Nxd4 {[%clk 0:03:00.3]} 10.
Qxd4 {[%clk 0:02:45.5]} 10... e5 {[%clk 0:02:58.9]} 11. Qh4 {[%clk 0:02:44.9]}
11... Be7 {[%clk 0:02:24.6]} 12. Nd2 {[%clk 0:02:15.4]} 12... O-O {[%clk
0:02:21.2]} 13. Rd1 {[%clk 0:02:00.6]} 13... Be6 {[%clk 0:02:18.8]} 14. Bd3
{[%clk 0:01:45.1]} 14... g6 {[%clk 0:02:18.4]} 15. Bb1 {[%clk 0:01:20.9]} 15...
Qe8 {[%clk 0:02:14.1]} 16. Nf3 {[%clk 0:01:06.6]} 16... Nb6 {[%clk 0:01:56.8]}
17. O-O {[%clk 0:00:31]} 17... Bxb3 {[%clk 0:01:44.6]} 18. Rc1 {[%clk
0:00:32.6]} 18... Rc8 {[%clk 0:01:30.3]} 19. Rxc8 {[%clk 0:00:29]} 19... Nxc8
{[%clk 0:01:31.6]} 20. Rc1 {[%clk 0:00:28.1]} 20... Bd5 {[%clk 0:01:26.6]} 21.
Be4 {[%clk 0:00:18.9]} 21... Qf7 {[%clk 0:01:14.7]} 22. Rc7 {[%clk 0:00:12.2]}
22... b5 {[%clk 0:01:02.5]} 23. h3 {[%clk 0:00:08.4]} 23... Be6 {[%clk 0:00:59]}
24. Qg3 {[%clk 0:00:06.2]} 24... Nd6 {[%clk 0:00:59]} 25. Nxe5 {[%clk 0:00:07]}
25... fxe5 {[%clk 0:00:21]} 26. Qxe5 {[%clk 0:00:08.9]} 26... Qxf2+ {[%clk
0:00:22.2]} 27. Kh2 {[%clk 0:00:10.3]} 27... Rf6 {[%clk 0:00:23.2]} 28. Rxe7
{[%clk 0:00:10.2]} 28... Nxe4 {[%clk 0:00:24.7]} 29. Rxe6 {[%clk 0:00:08.6]}
29... Qf5 {[%clk 0:00:17.7]} 30. Rxf6 {[%clk 0:00:08]} 30... Nxf6 {[%clk
0:00:18.6]} 31. Qxf5 {[%clk 0:00:08.5]} 31... gxf5 {[%clk 0:00:19.9]} 32. Bxf6
{[%clk 0:00:10.2]} 32... Kf7 {[%clk 0:00:21.8]} 33. Bc3 {[%clk 0:00:10.9]} 33...
Ke6 {[%clk 0:00:23.7]} 34. Kg3 {[%clk 0:00:12]} 34... Kd5 {[%clk 0:00:25.6]} 35.
Kf4 {[%clk 0:00:13.1]} 35... Kc4 {[%clk 0:00:27.5]} 36. Ba5 {[%clk 0:00:12.4]}
36... Kb3 {[%clk 0:00:29.4]} 37. Kxf5 {[%clk 0:00:13.8]} 37... Kxa3 {[%clk
0:00:30.8]} 38. e4 {[%clk 0:00:15.3]} 38... b4 {[%clk 0:00:31.6]} 39. e5 {[%clk
0:00:16.2]} 39... b3 {[%clk 0:00:33]} 40. Bc3 {[%clk 0:00:17.3]} 40... a5 {[%clk
0:00:33.2]} 41. e6 {[%clk 0:00:17.8]} 41... a4 {[%clk 0:00:35.1]} 42. e7 {[%clk
0:00:18]} 42... Ka2 {[%clk 0:00:37]} 43. e8=Q {[%clk 0:00:19]} 43... a3 {[%clk
0:00:38.9]} 44. Qe6 {[%clk 0:00:18.9]} 44... h5 {[%clk 0:00:37.7]} 45. h4 {[%clk
0:00:20.1]} 45... Kb1 {[%clk 0:00:37.9]} 46. Qxb3+ {[%clk 0:00:22]} 1-0

[Event "*** MasterClass Titled Tuesday Blitz"]
[Site "Chess.com"]
[Date "2017.12.12"]
[Round "5"]
[White "KhalilMousavi77"]
[Black "benhal"]
[Result "1-0"]
[WhiteElo "2454"]
[BlackElo "2279"]
[TimeControl "180+2"]
[EndTime "14:06:49 PST"]
[Termination "KhalilMousavi77 won by resignation"]

1. e4 {[%clk 0:03:01.3]} 1... g6 {[%clk 0:02:38.9]} 2. d4 {[%clk 0:02:40.3]}
2... Bg7 {[%clk 0:02:38.1]} 3. Nc3 {[%clk 0:02:40.7]} 3... d6 {[%clk 0:02:37.8]}
4. f4 {[%clk 0:02:38.2]} 4... Nf6 {[%clk 0:02:36.9]} 5. Nf3 {[%clk 0:02:37.8]}
5... O-O {[%clk 0:02:35.8]} 6. Be2 {[%clk 0:02:39.3]} 6... Nc6 {[%clk
0:02:29.6]} 7. O-O {[%clk 0:02:39.7]} 7... e5 {[%clk 0:02:25.6]} 8. d5 {[%clk
0:02:38]} 8... Ne7 {[%clk 0:02:19.5]} 9. fxe5 {[%clk 0:02:37.9]} 9... dxe5
{[%clk 0:02:09.1]} 10. Nxe5 {[%clk 0:02:38.2]} 10... Nfxd5 {[%clk 0:02:00.9]}
11. Nxf7 {[%clk 0:02:35.5]} 11... Rxf7 {[%clk 0:01:50.2]} 12. Rxf7 {[%clk
0:02:33.9]} 12... Kxf7 {[%clk 0:01:52.1]} 13. Nxd5 {[%clk 0:02:22.2]} 13... c6
{[%clk 0:01:39.5]} 14. Qf1+ {[%clk 0:02:20]} 14... Kg8 {[%clk 0:01:38.9]} 15.
Nc3 {[%clk 0:02:09.1]} 15... Qd4+ {[%clk 0:01:37.6]} 16. Kh1 {[%clk 0:02:09.6]}
16... Be6 {[%clk 0:01:38.4]} 17. Bg5 {[%clk 0:02:08.1]} 17... Rf8 {[%clk
0:01:39.2]} 18. Qe1 {[%clk 0:02:09.5]} 18... Nc8 {[%clk 0:01:34.5]} 19. Rd1
{[%clk 0:02:04.5]} 19... Qe5 {[%clk 0:01:35]} 20. Be3 {[%clk 0:02:04.2]} 20...
c5 {[%clk 0:01:30]} 21. Qh4 {[%clk 0:01:57]} 21... b6 {[%clk 0:01:29]} 22. Rd8
{[%clk 0:01:37.2]} 22... Nd6 {[%clk 0:01:06.6]} 23. Rxf8+ {[%clk 0:01:30.6]}
23... Bxf8 {[%clk 0:01:06.8]} 24. Qd8 {[%clk 0:01:27.4]} 24... Nc4 {[%clk
0:01:05.6]} 25. Bh6 {[%clk 0:01:18.5]} 25... Qd6 {[%clk 0:01:03.7]} 26. Qxf8+
{[%clk 0:01:13.5]} 26... Qxf8 {[%clk 0:01:04.2]} 27. Bxf8 {[%clk 0:01:14.9]}
27... Kxf8 {[%clk 0:01:06.1]} 28. Bxc4 {[%clk 0:01:15.8]} 28... Bxc4 {[%clk
0:01:08]} 29. Kg1 {[%clk 0:01:11.1]} 29... Ke7 {[%clk 0:01:09.5]} 30. Kf2 {[%clk
0:01:12.2]} 30... Ke6 {[%clk 0:01:10.6]} 31. Ke3 {[%clk 0:01:13.1]} 31... Ke5
{[%clk 0:01:10.7]} 32. b3 {[%clk 0:01:12.2]} 32... Ba6 {[%clk 0:01:09.7]} 33.
Nb1 {[%clk 0:01:10.5]} 33... Bf1 {[%clk 0:01:09.7]} 34. g3 {[%clk 0:01:11.8]}
34... Ba6 {[%clk 0:01:08.2]} 35. Nd2 {[%clk 0:01:12.8]} 35... b5 {[%clk
0:01:08.4]} 36. Nf3+ {[%clk 0:01:13.8]} 36... Kf6 {[%clk 0:01:09.1]} 37. Kf4
{[%clk 0:01:13.9]} 37... h6 {[%clk 0:01:09.3]} 38. h4 {[%clk 0:01:11.7]} 38...
Bb7 {[%clk 0:01:09.8]} 39. g4 {[%clk 0:01:11.9]} 39... a5 {[%clk 0:01:08.3]} 40.
g5+ {[%clk 0:01:13]} 40... hxg5+ {[%clk 0:01:09.1]} 41. hxg5+ {[%clk 0:01:14.9]}
41... Ke6 {[%clk 0:01:10.3]} 42. Ne5 {[%clk 0:01:14.7]} 42... c4 {[%clk
0:01:04]} 43. bxc4 {[%clk 0:01:12.5]} 43... b4 {[%clk 0:01:03.7]} 44. Nxg6
{[%clk 0:01:11]} 44... Ba6 {[%clk 0:01:05.2]} 45. Ne5 {[%clk 0:01:10.8]} 45...
a4 {[%clk 0:01:05.3]} 46. c5 {[%clk 0:00:57.4]} 46... Bb5 {[%clk 0:01:01]} 47.
g6 {[%clk 0:00:52.1]} 47... Kf6 {[%clk 0:01:01.6]} 48. c6 {[%clk 0:00:52.1]}
48... a3 {[%clk 0:00:55.8]} 49. c7 {[%clk 0:00:51.7]} 49... Ba6 {[%clk
0:00:57.7]} 50. Nc6 {[%clk 0:00:42.6]} 50... b3 {[%clk 0:00:57.7]} 51. cxb3
{[%clk 0:00:41.3]} 51... Kxg6 {[%clk 0:00:59.1]} 52. c8=Q {[%clk 0:00:41.3]}
52... Kf6 {[%clk 0:01:00.7]} 53. Qxa6 {[%clk 0:00:41.5]} 1-0

[Event "*** MasterClass Titled Tuesday Blitz"]
[Site "Chess.com"]
[Date "2017.12.12"]
[Round "5"]
[White "Divertissement"]
[Black "BartoszSocko"]
[Result "0-1"]
[WhiteElo "2404"]
[BlackElo "2537"]
[TimeControl "180+2"]
[EndTime "14:06:58 PST"]
[Termination "BartoszSocko won by resignation"]

1. e4 {[%clk 0:02:57.6]} 1... e6 {[%clk 0:03:00.6]} 2. d4 {[%clk 0:02:57.5]}
2... d5 {[%clk 0:03:01.8]} 3. Nd2 {[%clk 0:02:58.3]} 3... c5 {[%clk 0:03:01.7]}
4. exd5 {[%clk 0:02:58.8]} 4... Qxd5 {[%clk 0:03:02.6]} 5. Ngf3 {[%clk
0:03:00.3]} 5... cxd4 {[%clk 0:03:02]} 6. Bc4 {[%clk 0:03:01.8]} 6... Qd8 {[%clk
0:03:03.1]} 7. O-O {[%clk 0:03:02.4]} 7... Nc6 {[%clk 0:03:04.3]} 8. Nb3 {[%clk
0:03:03.8]} 8... a6 {[%clk 0:03:04.7]} 9. a4 {[%clk 0:03:01.7]} 9... Nf6 {[%clk
0:03:01.3]} 10. Nbxd4 {[%clk 0:03:02.2]} 10... Nxd4 {[%clk 0:03:02]} 11. Nxd4
{[%clk 0:03:03.1]} 11... Qc7 {[%clk 0:03:03]} 12. Be2 {[%clk 0:03:03.2]} 12...
Bd7 {[%clk 0:03:04]} 13. Bf3 {[%clk 0:03:04.3]} 13... Bd6 {[%clk 0:02:58.8]} 14.
g3 {[%clk 0:03:01.2]} 14... O-O {[%clk 0:02:59.4]} 15. Bg5 {[%clk 0:02:55.7]}
15... Be5 {[%clk 0:03:00]} 16. c3 {[%clk 0:02:46.5]} 16... h6 {[%clk 0:03:00.6]}
17. Be3 {[%clk 0:02:46.7]} 17... Rfd8 {[%clk 0:02:57]} 18. Qb3 {[%clk
0:02:29.4]} 18... Rab8 {[%clk 0:02:54.8]} 19. Rfd1 {[%clk 0:02:25]} 19... Nd5
{[%clk 0:02:48.3]} 20. Nf5 {[%clk 0:01:57]} 20... Bc6 {[%clk 0:02:36]} 21. Bg2
{[%clk 0:01:19.3]} 21... b5 {[%clk 0:02:24]} 22. a5 {[%clk 0:01:12]} 22... Qb7
{[%clk 0:01:30.2]} 23. Nd4 {[%clk 0:00:44.4]} 23... Bxd4 {[%clk 0:01:20.1]} 24.
Bxd4 {[%clk 0:00:46.3]} 24... Ne7 {[%clk 0:01:07.5]} 25. Bxc6 {[%clk 0:00:43]}
25... Qxc6 {[%clk 0:01:09.4]} 26. Bb6 {[%clk 0:00:31.4]} 26... Rd5 {[%clk
0:01:10.4]} 27. Qb4 {[%clk 0:00:19.5]} 27... Re8 {[%clk 0:01:08.5]} 28. Be3
{[%clk 0:00:17]} 28... Nf5 {[%clk 0:01:04.1]} 29. Bb6 {[%clk 0:00:18.3]} 29...
Nd6 {[%clk 0:01:00.6]} 30. Rxd5 {[%clk 0:00:16.9]} 30... Qxd5 {[%clk 0:01:02.5]}
31. Qd4 {[%clk 0:00:17.9]} 31... Qc6 {[%clk 0:00:40.9]} 32. Rd1 {[%clk
0:00:18.3]} 32... Nc4 {[%clk 0:00:40.7]} 33. b3 {[%clk 0:00:17.4]} 33... Nxb6
{[%clk 0:00:31]} 34. axb6 {[%clk 0:00:13.8]} 34... Rb8 {[%clk 0:00:31.3]} 35. c4
{[%clk 0:00:12.9]} 35... bxc4 {[%clk 0:00:30.5]} 36. bxc4 {[%clk 0:00:14.8]}
36... Qxb6 {[%clk 0:00:30.2]} 37. c5 {[%clk 0:00:15.6]} 37... Qc6 {[%clk
0:00:30.1]} 38. Rc1 {[%clk 0:00:15.8]} 38... Rb5 {[%clk 0:00:23.1]} 39. Qd8+
{[%clk 0:00:15.5]} 39... Kh7 {[%clk 0:00:24.4]} 40. Qd3+ {[%clk 0:00:17.4]}
40... g6 {[%clk 0:00:25.3]} 41. Qd4 {[%clk 0:00:18.2]} 41... a5 {[%clk
0:00:16.4]} 42. Qf6 {[%clk 0:00:16.9]} 42... Rb7 {[%clk 0:00:17.2]} 43. h4
{[%clk 0:00:16.2]} 43... h5 {[%clk 0:00:18.1]} 44. Rd1 {[%clk 0:00:16.6]} 44...
a4 {[%clk 0:00:19]} 45. Rd8 {[%clk 0:00:17.6]} 45... Rb1+ {[%clk 0:00:19.5]} 0-1

[Event "*** MasterClass Titled Tuesday Blitz"]
[Site "Chess.com"]
[Date "2017.12.12"]
[Round "5"]
[White "SharkAnto55"]
[Black "Hanging_pointer"]
[Result "1-0"]
[WhiteElo "2362"]
[BlackElo "2282"]
[TimeControl "180+2"]
[EndTime "14:06:59 PST"]
[Termination "SharkAnto55 won by resignation"]

1. d4 {[%clk 0:03:01.9]} 1... Nf6 {[%clk 0:03:00.9]} 2. c4 {[%clk 0:03:01.5]}
2... e6 {[%clk 0:03:01.8]} 3. Nf3 {[%clk 0:03:01.9]} 3... d5 {[%clk 0:03:02.2]}
4. g3 {[%clk 0:03:03.2]} 4... Be7 {[%clk 0:03:02.2]} 5. Bg2 {[%clk 0:03:04.2]}
5... O-O {[%clk 0:03:03.7]} 6. O-O {[%clk 0:03:05.6]} 6... dxc4 {[%clk
0:03:05.6]} 7. Qc2 {[%clk 0:03:06.5]} 7... Bd7 {[%clk 0:03:04.5]} 8. Qxc4 {[%clk
0:02:46.4]} 8... Bc6 {[%clk 0:03:04.9]} 9. Nc3 {[%clk 0:02:42.2]} 9... Nbd7
{[%clk 0:02:57.6]} 10. Bg5 {[%clk 0:02:34.5]} 10... h6 {[%clk 0:02:56.1]} 11.
Bxf6 {[%clk 0:02:32.7]} 11... Nxf6 {[%clk 0:02:58]} 12. Rad1 {[%clk 0:02:29]}
12... a6 {[%clk 0:02:38.7]} 13. Rfe1 {[%clk 0:02:28.7]} 13... Ne4 {[%clk
0:01:58.5]} 14. Ne5 {[%clk 0:02:22.7]} 14... Bd5 {[%clk 0:01:40.5]} 15. Nxd5
{[%clk 0:02:18.8]} 15... exd5 {[%clk 0:01:42.4]} 16. Qb3 {[%clk 0:02:15.4]}
16... Rb8 {[%clk 0:01:36.4]} 17. e3 {[%clk 0:01:59.1]} 17... Nf6 {[%clk
0:01:31.6]} 18. Rc1 {[%clk 0:01:54.2]} 18... c6 {[%clk 0:01:32.7]} 19. Bf1
{[%clk 0:01:48.7]} 19... Bd6 {[%clk 0:01:31.1]} 20. Nd3 {[%clk 0:01:44.1]} 20...
Ne4 {[%clk 0:01:28.4]} 21. f3 {[%clk 0:01:42.4]} 21... Ng5 {[%clk 0:01:26.7]}
22. Bg2 {[%clk 0:01:37]} 22... Re8 {[%clk 0:01:25]} 23. Re2 {[%clk 0:01:16.7]}
23... Qf6 {[%clk 0:01:14.3]} 24. Rf1 {[%clk 0:01:12.5]} 24... h5 {[%clk
0:01:11.6]} 25. f4 {[%clk 0:01:04.7]} 25... Ne4 {[%clk 0:01:03.2]} 26. Ne5
{[%clk 0:01:03.4]} 26... Qf5 {[%clk 0:01:03.2]} 27. Qc2 {[%clk 0:00:59]} 27...
f6 {[%clk 0:00:56.9]} 28. Bxe4 {[%clk 0:00:59.2]} 28... dxe4 {[%clk 0:00:58.8]}
29. Nc4 {[%clk 0:00:55.9]} 29... Bc7 {[%clk 0:00:59.5]} 30. Rg2 {[%clk
0:00:52.9]} 30... c5 {[%clk 0:00:46.5]} 31. Rd1 {[%clk 0:00:40.1]} 31... b5
{[%clk 0:00:41.7]} 32. Nd2 {[%clk 0:00:31.5]} 32... cxd4 {[%clk 0:00:39.2]} 33.
Qxc7 {[%clk 0:00:29.1]} 33... dxe3 {[%clk 0:00:40.3]} 34. Nb3 {[%clk 0:00:29.5]}
34... Rbc8 {[%clk 0:00:36.3]} 35. Qd7 {[%clk 0:00:30.7]} 35... Qg6 {[%clk
0:00:22.4]} 36. Qd4 {[%clk 0:00:22.5]} 36... Qg4 {[%clk 0:00:21]} 37. Re1 {[%clk
0:00:20.8]} 37... Rcd8 {[%clk 0:00:13.7]} 38. Qxe3 {[%clk 0:00:21.5]} 38... Rd3
{[%clk 0:00:14.5]} 39. Qe2 {[%clk 0:00:20.3]} 39... Qe6 {[%clk 0:00:14.3]} 40.
Qxd3 {[%clk 0:00:20.6]} 40... exd3 {[%clk 0:00:16.1]} 41. Rxe6 {[%clk
0:00:21.9]} 41... Rxe6 {[%clk 0:00:17.5]} 42. Rd2 {[%clk 0:00:23.8]} 42... Re1+
{[%clk 0:00:16.5]} 43. Kf2 {[%clk 0:00:24.6]} 43... Rh1 {[%clk 0:00:17.2]} 44.
Ke3 {[%clk 0:00:25.3]} 1-0

[Event "*** MasterClass Titled Tuesday Blitz"]
[Site "Chess.com"]
[Date "2017.12.12"]
[Round "5"]
[White "HarutyunianTigranK"]
[Black "BilodeauA"]
[Result "0-1"]
[WhiteElo "2605"]
[BlackElo "2749"]
[TimeControl "180+2"]
[EndTime "14:07:15 PST"]
[Termination "BilodeauA won by resignation"]

1. Nf3 {[%clk 0:03:01.3]} 1... d5 {[%clk 0:02:57.6]} 2. g3 {[%clk 0:03:02.5]}
2... Nf6 {[%clk 0:02:58.1]} 3. Bg2 {[%clk 0:03:03.4]} 3... Bf5 {[%clk
0:02:59.7]} 4. O-O {[%clk 0:03:04.6]} 4... c6 {[%clk 0:03:01]} 5. c4 {[%clk
0:03:04.2]} 5... e6 {[%clk 0:03:01.2]} 6. cxd5 {[%clk 0:03:00]} 6... exd5 {[%clk
0:03:03.1]} 7. d3 {[%clk 0:03:01.2]} 7... Na6 {[%clk 0:03:03.9]} 8. Nc3 {[%clk
0:02:58.4]} 8... Be7 {[%clk 0:03:02.6]} 9. a3 {[%clk 0:02:57.6]} 9... O-O {[%clk
0:03:03.1]} 10. Qc2 {[%clk 0:02:57.5]} 10... Re8 {[%clk 0:03:02]} 11. e4 {[%clk
0:02:56]} 11... Bg6 {[%clk 0:02:58.1]} 12. Nh4 {[%clk 0:02:54.1]} 12... Bf8
{[%clk 0:02:55.8]} 13. Nxg6 {[%clk 0:02:54.1]} 13... hxg6 {[%clk 0:02:56.2]} 14.
exd5 {[%clk 0:02:53.4]} 14... Nxd5 {[%clk 0:02:56.8]} 15. Nxd5 {[%clk
0:02:47.4]} 15... cxd5 {[%clk 0:02:58.7]} 16. b4 {[%clk 0:02:33.5]} 16... Qd7
{[%clk 0:02:51.7]} 17. Qb3 {[%clk 0:02:31.8]} 17... Rad8 {[%clk 0:02:40.4]} 18.
Be3 {[%clk 0:02:27.5]} 18... b6 {[%clk 0:02:37.9]} 19. Rac1 {[%clk 0:02:28]}
19... Nc7 {[%clk 0:02:38.4]} 20. Rc2 {[%clk 0:02:18.3]} 20... Ne6 {[%clk
0:02:36.4]} 21. Rfc1 {[%clk 0:02:18.8]} 21... Be7 {[%clk 0:02:32.5]} 22. Bh3
{[%clk 0:02:12.7]} 22... Bf6 {[%clk 0:02:25.5]} 23. Rc6 {[%clk 0:01:56.5]} 23...
Re7 {[%clk 0:02:08.8]} 24. Qa2 {[%clk 0:01:41.1]} 24... Qe8 {[%clk 0:02:08.9]}
25. Bg2 {[%clk 0:01:17.5]} 25... Nd4 {[%clk 0:01:37.9]} 26. Rc7 {[%clk
0:00:46.1]} 26... Nf5 {[%clk 0:01:27.6]} 27. Bd2 {[%clk 0:00:43.8]} 27... Bd4
{[%clk 0:01:21.8]} 28. Bxd5 {[%clk 0:00:37.7]} 28... Rxc7 {[%clk 0:01:22.5]} 29.
Rxc7 {[%clk 0:00:38.2]} 29... Qe2 {[%clk 0:01:23.1]} 30. Bxf7+ {[%clk
0:00:30.4]} 30... Kh8 {[%clk 0:01:15.3]} 31. Bg5 {[%clk 0:00:24.1]} 31... Qe1+
{[%clk 0:00:51.4]} 32. Kg2 {[%clk 0:00:25.1]} 32... Rf8 {[%clk 0:00:52.9]} 33.
Rc1 {[%clk 0:00:21.9]} 33... Qe5 {[%clk 0:00:46.6]} 34. Bf4 {[%clk 0:00:16.9]}
34... Qf6 {[%clk 0:00:46.7]} 35. Bd5 {[%clk 0:00:13.3]} 35... g5 {[%clk
0:00:47.9]} 36. Rc6 {[%clk 0:00:12.2]} 36... Qd8 {[%clk 0:00:38.9]} 37. Bc7
{[%clk 0:00:12.5]} 37... Qd7 {[%clk 0:00:38.4]} 38. Be4 {[%clk 0:00:10.2]} 38...
Ne7 {[%clk 0:00:29.7]} 39. Qe2 {[%clk 0:00:10.4]} 39... Rxf2+ {[%clk 0:00:25.9]}
40. Qxf2 {[%clk 0:00:11.2]} 40... Bxf2 {[%clk 0:00:27.8]} 41. Rc2 {[%clk
0:00:11.2]} 41... Bd4 {[%clk 0:00:28.2]} 42. Bb8 {[%clk 0:00:09.6]} 42... Nd5
{[%clk 0:00:26.6]} 43. Rc1 {[%clk 0:00:05.8]} 43... g6 {[%clk 0:00:26.8]} 44.
Kh1 {[%clk 0:00:03.3]} 44... a5 {[%clk 0:00:20.5]} 45. b5 {[%clk 0:00:04.6]}
45... a4 {[%clk 0:00:21.4]} 46. Rc6 {[%clk 0:00:05.7]} 46... Nf6 {[%clk
0:00:22.2]} 47. Bf3 {[%clk 0:00:04.1]} 47... Qf5 {[%clk 0:00:23]} 48. Kg2 {[%clk
0:00:04.9]} 48... g4 {[%clk 0:00:24.1]} 0-1

[Event "*** MasterClass Titled Tuesday Blitz"]
[Site "Chess.com"]
[Date "2017.12.12"]
[Round "5"]
[White "AquivaRubinstein"]
[Black "TijanaBlagojevic"]
[Result "1-0"]
[WhiteElo "2285"]
[BlackElo "2362"]
[TimeControl "180+2"]
[EndTime "14:07:19 PST"]
[Termination "AquivaRubinstein won by resignation"]

1. e4 {[%clk 0:02:58.8]} 1... e5 {[%clk 0:03:00.8]} 2. Nf3 {[%clk 0:02:59.3]}
2... Nc6 {[%clk 0:03:02.3]} 3. Bc4 {[%clk 0:03:00]} 3... Bc5 {[%clk 0:03:02.5]}
4. c3 {[%clk 0:03:00.9]} 4... Nf6 {[%clk 0:03:03.7]} 5. d4 {[%clk 0:03:02.1]}
5... exd4 {[%clk 0:03:05.6]} 6. cxd4 {[%clk 0:03:03.3]} 6... Bb4+ {[%clk
0:03:05.7]} 7. Nc3 {[%clk 0:03:04.5]} 7... Nxe4 {[%clk 0:03:03.3]} 8. O-O {[%clk
0:03:05.6]} 8... Bxc3 {[%clk 0:03:01.4]} 9. d5 {[%clk 0:03:06.8]} 9... Ne5
{[%clk 0:03:02.5]} 10. bxc3 {[%clk 0:03:05.8]} 10... Nxc4 {[%clk 0:03:03.4]} 11.
Qd4 {[%clk 0:03:06.8]} 11... O-O {[%clk 0:03:04.7]} 12. Qxe4 {[%clk 0:03:00.4]}
12... Nd6 {[%clk 0:03:04.5]} 13. Qd3 {[%clk 0:02:56.7]} 13... Qf6 {[%clk
0:02:55.2]} 14. Be3 {[%clk 0:02:50.6]} 14... b6 {[%clk 0:02:53.2]} 15. Bd4
{[%clk 0:02:42.2]} 15... Qf5 {[%clk 0:02:52.6]} 16. Qxf5 {[%clk 0:02:28.1]}
16... Nxf5 {[%clk 0:02:54.5]} 17. Be5 {[%clk 0:02:26.1]} 17... Bb7 {[%clk
0:02:37.1]} 18. c4 {[%clk 0:02:22.9]} 18... d6 {[%clk 0:02:29.3]} 19. Bc3 {[%clk
0:02:23.5]} 19... Rfe8 {[%clk 0:02:25.1]} 20. Rfe1 {[%clk 0:02:24.3]} 20... f6
{[%clk 0:02:17.9]} 21. g4 {[%clk 0:02:20.5]} 21... Nh6 {[%clk 0:02:17.4]} 22. h3
{[%clk 0:02:19.8]} 22... Kf7 {[%clk 0:02:15.8]} 23. Nd4 {[%clk 0:02:19.6]} 23...
Ba6 {[%clk 0:02:12.1]} 24. Ne6 {[%clk 0:01:59.8]} 24... Bxc4 {[%clk 0:02:11.4]}
25. Nxc7 {[%clk 0:01:58.8]} 25... Rxe1+ {[%clk 0:02:10.1]} 26. Rxe1 {[%clk
0:01:59.1]} 26... Rc8 {[%clk 0:02:10.1]} 27. Ne6 {[%clk 0:01:47.5]} 27... Bxd5
{[%clk 0:02:08.2]} 28. Nf4 {[%clk 0:01:48.7]} 28... Bxa2 {[%clk 0:02:02.4]} 29.
Bb4 {[%clk 0:01:49.6]} 29... Rc4 {[%clk 0:01:58.3]} 30. Bxd6 {[%clk 0:01:39.1]}
30... Ng8 {[%clk 0:01:46.6]} 31. Ra1 {[%clk 0:01:28.4]} 31... Rc2 {[%clk
0:01:47.2]} 32. Bb8 {[%clk 0:01:19.5]} 32... a5 {[%clk 0:01:44.8]} 33. Rd1
{[%clk 0:01:16.3]} 33... Be6 {[%clk 0:01:27.2]} 34. Rd6 {[%clk 0:01:15.3]} 34...
Bb3 {[%clk 0:01:21.7]} 35. Rxb6 {[%clk 0:01:14.8]} 35... a4 {[%clk 0:01:22.8]}
36. Rb7+ {[%clk 0:01:15.8]} 36... Ke8 {[%clk 0:01:15.3]} 37. Nh5 {[%clk
0:01:02.8]} 37... a3 {[%clk 0:01:00.5]} 38. Nxg7+ {[%clk 0:00:58.2]} 38... Kf8
{[%clk 0:01:00.9]} 39. Bd6+ {[%clk 0:00:53.7]} 39... Ne7 {[%clk 0:01:01.7]} 40.
Bxe7+ {[%clk 0:00:39.9]} 40... Kxg7 {[%clk 0:00:59.1]} 41. Bxa3+ {[%clk
0:00:40.4]} 41... Bf7 {[%clk 0:00:58.9]} 42. Bb2 {[%clk 0:00:31.3]} 42... Rc6
{[%clk 0:00:57.1]} 43. Rb5 {[%clk 0:00:23.6]} 43... Kg6 {[%clk 0:00:57.9]} 44.
h4 {[%clk 0:00:21.3]} 44... Be6 {[%clk 0:00:56.5]} 45. h5+ {[%clk 0:00:21.7]}
45... Kh6 {[%clk 0:00:37.3]} 46. f3 {[%clk 0:00:21.9]} 46... Rc2 {[%clk
0:00:27.3]} 47. Bxf6 {[%clk 0:00:20.1]} 47... Bc4 {[%clk 0:00:28.3]} 48. Rb6
{[%clk 0:00:17.6]} 48... Ra2 {[%clk 0:00:23.5]} 49. f4 {[%clk 0:00:12.9]} 49...
Bd5 {[%clk 0:00:23.1]} 50. Be5+ {[%clk 0:00:10.3]} 1-0